bitfinex-derivatives/quotes_SOLF0:USTF0_20241105
["timestamp","ask_amount","ask_price","bid_price","bid_amount"]
[1730828944527,23.8484,167.56,167.4,9.16820559]
[1730828944728,23.8484,167.56,167.42,9.16820559]
[1730828944729,3.36,167.55,167.42,9.16820559]
[1730828944929,9.16820559,167.47,167.42,2.9866]
[1730828945834,2.9856,167.48,167.44,2.9862]
[1730828946228,9.16820559,167.49,167.44,2.9862]
[1730828946428,2.9857,167.47,167.44,2.9862]
[1730828946625,9.16820559,167.49,167.44,2.9862]
[1730828947023,9.16820559,167.49,167.45,2.986]
[1730828947432,14.32642363,167.52,167.45,2.986]
[1730828948123,2.9852,167.5,167.43,3.36]
[1730828948327,17.68642363,167.55,167.44,1.3751]
[1730828948524,17.68642363,167.55,167.44,2.6775]
[1730828948732,2.985,167.52,167.44,2.6775]
[1730828948940,14.32642363,167.57,167.46,14.32642363]
[1730828949232,2.9846,167.54,167.47,1.2702]
[1730828949428,2.9846,167.54,167.5,2.985]
[1730828950229,14.32642363,167.55,167.48,3.36]
[1730828950845,2.985,167.51,167.48,3.36]
[1730828951437,2.985,167.51,167.48,6.3455]
[1730828953230,14.32642363,167.53,167.48,3.36]
[1730828953539,2.9854,167.49,167.48,3.36]
[1730828954440,2.9851,167.51,167.48,3.36]
[1730828955344,14.32642363,167.53,167.48,3.36]
[1730828955550,2.9853,167.5,167.48,3.36]
[1730828955733,23.846,167.63,167.48,3.36]
[1730828955734,5.966,167.63,167.48,3.36]
[1730828955936,14.32642363,167.59,167.48,3.36]
[1730828956136,2.9846,167.54,167.48,3.36]
[1730828956947,14.32642363,167.59,167.48,3.36]
[1730828956948,14.32642363,167.59,167.48,17.68642363]
[1730828957544,14.32642363,167.59,167.48,3.36]
[1730828957750,14.32642363,167.59,167.51,2.9849]
[1730828957939,2.9844,167.55,167.51,2.9849]
[1730828958241,2.9844,167.55,167.5,2.985]
[1730828958438,2.9844,167.55,167.49,14.32642363]
[1730828958747,14.32642363,167.59,167.49,14.32642363]
[1730828958944,3.36,167.61,167.49,14.32642363]
[1730828958945,17.68642363,167.61,167.49,14.32642363]
[1730828959145,17.68642363,167.61,167.51,14.32642363]
[1730828959146,14.32642363,167.61,167.51,14.32642363]
[1730828959444,14.32642363,167.63,167.53,14.32642363]
[1730828959642,14.32642363,167.63,167.54,3.36]
[1730828959837,9.74300688,167.64,167.54,3.36]
[1730828960039,2.9833,167.61,167.57,2.9839]
[1730828960242,2.9833,167.61,167.55,1.2535]
[1730828960735,2.9836,167.59,167.55,1.2535]
[1730828960936,24.06943051,167.64,167.55,1.2535]
[1730828962074,9.74300688,167.64,167.55,1.2535]
[1730828962474,9.74300688,167.64,167.55,15.57992363]
[1730828963155,2.983,167.63,167.57,2.9838]
[1730828963344,9.74300688,167.64,167.55,15.57992363]
[1730828963846,9.74300688,167.64,167.62,2.9829]
[1730828964047,9.74300688,167.64,167.62,6.3429]
[1730828964245,9.74300688,167.64,167.62,3.36]
[1730828964445,9.74300688,167.64,167.63,2.9829]
[1730828965254,5.56520688,167.64,167.63,2.9829]
[1730828966145,5.56520688,167.64,167.63,4.2404]
[1730828966851,5.56520688,167.64,167.63,1.2575]
[1730828967047,8.54800688,167.64,167.62,3.36]
[1730828967358,5.56520688,167.64,167.62,3.36]
[1730828967840,8.54790688,167.64,167.62,3.36]
[1730828968147,5.56520688,167.64,167.62,3.36]
[1730828968352,5.56520688,167.64,167.61,3.36]
[1730828968645,2.983,167.63,167.61,3.36]
[1730828969544,2.983,167.62,167.61,3.36]
[1730828969750,5.56520688,167.64,167.61,3.36]
[1730828970139,2.983,167.63,167.61,3.36]
[1730828971055,5.56520688,167.64,167.61,3.36]
[1730828971248,5.56520688,167.64,167.57,1.3623]
[1730828971249,14.32642363,167.66,167.59,3.36]
[1730828971641,2.9834,167.6,167.59,3.36]
[1730828972340,2.9831,167.62,167.59,3.36]
[1730828973436,14.32642363,167.66,167.59,3.36]
[1730828973739,2.9833,167.61,167.59,3.36]
[1730828974723,14.32642363,167.66,167.59,3.36]
[1730828974920,2.9834,167.6,167.59,3.36]
[1730828975913,14.32642363,167.66,167.56,1.2575]
[1730828976117,2.9837,167.59,167.56,4.6175]
[1730828976312,14.32642363,167.63,167.54,14.32642363]
[1730828976513,14.32642363,167.63,167.53,1.2934]
[1730828976713,2.984,167.57,167.54,3.36]
[1730828977117,2.984,167.57,167.54,6.3445]
[1730828977520,2.9843,167.55,167.54,3.36]
[1730828978013,2.9843,167.55,167.53,1.2934]
[1730828980614,2.9842,167.56,167.53,1.2934]
[1730828981523,14.32642363,167.61,167.49,2.9852]
[1730828981524,14.32642363,167.59,167.49,2.9852]
[1730828981722,14.32642363,167.59,167.47,15.60992363]
[1730828981921,14.32642363,167.59,167.48,3.36]
[1730828982628,14.32642363,167.59,167.49,2.9853]
[1730828983223,2.9848,167.53,167.49,2.9853]
[1730828983720,2.9848,167.53,167.49,6.3453]
[1730828984627,2.9848,167.53,167.49,20.67172363]
[1730828985028,14.32642363,167.59,167.49,6.3453]
[1730828985329,2.985,167.52,167.49,3.36]
[1730828985917,2.9846,167.54,167.5,2.9851]
[1730828986122,14.32642363,167.59,167.5,2.9851]
[1730828986524,14.32642363,167.59,167.49,3.36]
[1730828986832,2.9848,167.53,167.49,6.3453]
[1730828987427,2.9849,167.52,167.49,6.3453]
[1730828988429,2.9847,167.53,167.49,6.3453]
[1730828989231,2.9847,167.53,167.49,3.36]
[1730828989434,2.9847,167.53,167.5,2.9851]
[1730828991334,14.32642363,167.59,167.5,2.9851]
[1730828991522,2.9846,167.54,167.5,2.9851]
[1730828991927,2.9847,167.53,167.5,2.9851]
[1730828993732,2.9847,167.53,167.5,12.15847704]
[1730828995125,2.9849,167.52,167.5,9.17337704]
[1730828995329,9.17337704,167.56,167.5,9.17337704]
[1730828995929,2.9847,167.53,167.5,12.15857704]
[1730828996429,2.9848,167.53,167.5,9.17337704]
[1730828997036,2.9848,167.53,167.41,1.2657]
[1730828997333,9.17337704,167.56,167.49,9.17337704]
[1730828997538,9.17337704,167.56,167.49,12.53337704]
[1730828997736,9.17337704,167.56,167.5,9.17337704]
[1730828998334,2.9848,167.53,167.5,12.15847704]
[1730828999439,9.17337704,167.56,167.5,9.17337704]
[1730829000441,2.9848,167.53,167.5,9.17337704]
[1730829000644,2.9848,167.53,167.5,12.15847704]
[1730829000836,2.9838,167.58,167.52,9.17337704]
[1730829001039,9.17337704,167.57,167.52,12.15807704]
[1730829001745,9.17337704,167.59,167.54,9.17337704]
[1730829002138,2.9841,167.56,167.54,9.17337704]
[1730829002342,2.9841,167.56,167.53,2.9846]
[1730829002343,1.3747,167.6,167.49,3.36]
[1730829002647,2.9844,167.55,167.52,2.9848]
[1730829002833,9.17337704,167.56,167.52,2.9848]
[1730829003039,9.17337704,167.56,167.5,9.17337704]
[1730829003342,2.9844,167.55,167.51,2.9849]
[1730829003537,2.9844,167.55,167.5,10.50067704]
[1730829004341,2.9844,167.55,167.52,12.15807704]
[1730829004540,2.9842,167.56,167.52,12.15807704]
[1730829005149,9.17337704,167.58,167.52,12.15807704]
[1730829005346,2.9843,167.55,167.52,12.15807704]
[1730829005740,9.17337704,167.58,167.52,9.17337704]
[1730829005943,2.9838,167.58,167.54,9.17337704]
[1730829006548,2.984,167.57,167.54,12.15777704]
[1730829006853,3.36,167.64,167.54,12.15777704]
[1730829007043,9.17337704,167.6,167.54,12.15777704]
[1730829007350,9.17337704,167.6,167.55,2.9842]
[1730829007351,2.9838,167.58,167.55,2.9842]
[1730829007644,9.17337704,167.62,167.55,9.17337704]
[1730829007847,9.17337704,167.62,167.55,12.15757704]
[1730829008245,2.9837,167.59,167.55,12.15757704]
[1730829008438,9.17337704,167.62,167.57,2.9838]
[1730829009448,2.9835,167.6,167.56,2.984]
[1730829010051,12.15687704,167.6,167.57,2.9839]
[1730829010350,9.17337704,167.58,167.5,2.7082]
[1730829010544,9.17337704,167.56,167.5,15.24157704]
[1730829010743,2.9848,167.53,167.5,18.22667704]
[1730829011245,9.17337704,167.56,167.5,18.22667704]
[1730829011445,2.9846,167.54,167.5,18.22667704]
[1730829011754,9.17337704,167.56,167.5,18.22667704]
[1730829012645,2.9848,167.53,167.5,18.22667704]
[1730829012948,9.17337704,167.53,167.39,48.934]
[1730829013144,2.9855,167.49,167.45,9.17337704]
[1730829013450,9.17337704,167.5,167.45,3.36]
[1730829013645,9.17337704,167.5,167.43,9.17337704]
[1730829013847,9.17337704,167.5,167.44,3.36]
[1730829014147,2.9855,167.49,167.44,3.36]
[1730829014454,9.17337704,167.52,167.46,9.17337704]
[1730829014939,3.36,167.55,167.46,9.17337704]
[1730829015138,9.17337704,167.52,167.46,9.17337704]
[1730829015343,3.36,167.55,167.45,14.33721117]
[1730829015540,2.9852,167.5,167.47,2.9856]
[1730829015753,2.9852,167.5,167.45,14.33721117]
[1730829015940,3.36,167.55,167.45,14.33721117]
[1730829016351,2.9851,167.51,167.47,2.9857]
[1730829016540,3.36,167.55,167.45,14.33721117]
[1730829016945,2.985,167.51,167.47,2.9856]
[1730829017151,3.36,167.55,167.47,2.9856]
[1730829017357,3.36,167.55,167.45,14.33721117]
[1730829017746,3.36,167.55,167.47,2.9857]
[1730829018157,3.36,167.55,167.45,14.33721117]
[1730829019256,2.985,167.52,167.48,2.9855]
[1730829019646,3.36,167.55,167.45,14.33721117]
[1730829020247,3.36,167.55,167.47,2.9857]
[1730829020248,2.9851,167.51,167.47,2.9857]
[1730829020649,14.33721117,167.53,167.44,3.36]
[1730829020856,2.985,167.52,167.48,2.9855]
[1730829021054,2.985,167.52,167.45,14.33721117]
[1730829021550,2.985,167.52,167.48,2.9855]
[1730829023446,2.985,167.51,167.48,2.9855]
[1730829026148,17.69721117,167.55,167.45,14.33721117]
[1730829026357,2.9847,167.53,167.5,2.9851]
[1730829026852,2.9847,167.53,167.49,2.9853]
[1730829027254,26.8656,167.69,167.5,3.36]
[1730829027454,14.33721117,167.63,167.54,2.9843]
[1730829027655,14.33721117,167.63,167.55,3.36]
[1730829028360,2.984,167.57,167.55,3.36]
[1730829028855,2.984,167.57,167.52,14.33721117]
[1730829028856,14.33721117,167.6,167.54,3.36]
[1730829029158,14.33721117,167.58,167.52,3.36]
[1730829030252,2.9841,167.57,167.52,3.36]
[1730829030557,14.33721117,167.58,167.52,3.36]
[1730829030978,2.9846,167.54,167.52,3.36]
[1730829033755,14.33721117,167.58,167.48,1.3756]
[1730829033756,2.985,167.52,167.49,6.3453]
[1730829034263,14.33721117,167.56,167.49,3.36]
[1730829035262,2.9849,167.52,167.49,6.3453]
[1730829035454,14.33721117,167.56,167.49,6.3453]
[1730829036284,2.985,167.51,167.49,3.36]
[1730829036463,14.33721117,167.56,167.47,3.36]
[1730829036772,10.5973,167.61,167.47,3.36]
[1730829036773,2.985,167.51,167.48,2.9854]
[1730829037262,2.985,167.51,167.49,9.17422902]
[1730829038362,9.17422902,167.55,167.49,9.17422902]
[1730829038563,2.9847,167.53,167.5,12.15932902]
[1730829038869,9.17422902,167.56,167.47,3.36]
[1730829039067,9.17422902,167.56,167.5,9.17422902]
[1730829040667,9.17422902,167.55,167.5,9.17422902]
[1730829041666,9.17422902,167.55,167.49,2.9852]
[1730829041853,9.17422902,167.55,167.49,12.15942902]
[1730829042554,2.9849,167.52,167.49,2.9852]
[1730829043065,9.17422902,167.53,167.44,1.2895]
[1730829043263,2.9855,167.49,167.46,2.9859]
[1730829043753,2.9854,167.49,167.46,2.9859]
[1730829044266,2.9854,167.49,167.46,12.16012902]
[1730829044665,9.17422902,167.51,167.46,12.16012902]
[1730829044666,9.17422902,167.51,167.46,9.17422902]
[1730829044868,2.9855,167.48,167.46,9.17422902]
[1730829046365,2.9854,167.49,167.46,9.17422902]
[1730829046770,9.17422902,167.51,167.46,9.17422902]
[1730829047773,9.17422902,167.5,167.44,4.6495]
[1730829047975,9.17422902,167.5,167.44,16.80982902]
[1730829048165,9.17422902,167.5,167.44,13.44982902]
[1730829048363,2.9855,167.49,167.44,13.44982902]
[1730829048663,9.17422902,167.5,167.44,13.44982902]
[1730829048968,2.9857,167.47,167.44,13.44982902]
[1730829049367,9.17422902,167.5,167.36,38.66717237]
[1730829049368,9.17422902,167.46,167.36,35.69959803]
[1730829049688,9.17422902,167.44,167.38,9.17422902]
[1730829050276,2.9867,167.42,167.39,9.17422902]
[1730829050776,2.9864,167.43,167.39,12.16132902]
[1730829050974,3.36,167.5,167.39,9.17422902]
[1730829051170,9.17422902,167.45,167.39,9.17422902]
[1730829052175,9.17422902,167.43,167.38,9.17422902]
[1730829052662,2.9866,167.42,167.38,12.16152902]
[1730829052869,9.17422902,167.45,167.39,9.17422902]
[1730829053873,2.9864,167.44,167.4,2.987]
[1730829054179,9.17422902,167.45,167.4,2.987]
[1730829054567,3.36,167.5,167.39,2.9871]
[1730829054568,2.9865,167.43,167.39,2.9871]
[1730829054780,2.9865,167.43,167.39,12.16132902]
[1730829055164,12.16072902,167.43,167.39,12.16132902]
[1730829056169,12.16072902,167.43,167.39,2.9871]
[1730829057277,12.16072902,167.43,167.4,2.9869]
[1730829059776,12.16102902,167.41,167.36,3.36]
[1730829059976,12.16102902,167.41,167.36,12.53422902]
[1730829060174,1.2893,167.54,167.36,3.36]
[1730829060175,3.36,167.45,167.36,3.36]
[1730829060369,12.16132902,167.4,167.36,3.36]
[1730829060570,12.16132902,167.4,167.35,9.17422902]
[1730829060875,12.16132902,167.4,167.36,2.9876]
[1730829062581,12.16132902,167.4,167.35,9.17422902]
[1730829062781,12.16132902,167.4,167.37,2.9875]
[1730829065476,9.17422902,167.39,167.34,9.17422902]
[1730829065678,9.17422902,167.39,167.33,4.6627]
[1730829065874,9.17422902,167.37,167.33,4.6627]
[1730829066078,9.17422902,167.34,167.33,1.3027]
[1730829066380,9.17422902,167.34,167.29,1.3036]
[1730829066584,9.17422902,167.34,167.28,3.36]
[1730829066585,9.17422902,167.31,167.27,1.2704]
[1730829067282,14.3395991,167.34,167.28,2.989]
[1730829068279,14.3395991,167.34,167.29,2.9889]
[1730829068475,14.3395991,167.34,167.27,1.2704]
[1730829069504,14.3395991,167.32,167.23,3.36]
[1730829069688,14.3395991,167.32,167.26,2.9894]
[1730829069887,14.3395991,167.32,167.23,3.36]
[1730829070194,14.3395991,167.32,167.24,2.9898]
[1730829070391,14.3395991,167.32,167.22,3.36]
[1730829070799,14.3395991,167.32,167.25,2.9895]
[1730829071486,14.3395991,167.32,167.23,14.3395991]
[1730829072285,14.3395991,167.32,167.25,2.9895]
[1730829072486,14.3395991,167.32,167.22,3.36]
[1730829072689,14.3395991,167.32,167.21,16.9075991]
[1730829072893,14.3395991,167.32,167.25,2.9896]
[1730829074391,14.3395991,167.29,167.23,2.99]
[1730829074692,14.3395991,167.29,167.22,3.36]
[1730829075495,14.3395991,167.29,167.19,3.36]
[1730829075693,2.9895,167.26,167.23,2.99]
[1730829075890,14.3395991,167.29,167.23,2.99]
[1730829076293,2.9896,167.26,167.22,2.9902]
[1730829076506,14.3395991,167.27,167.19,3.36]
[1730829076990,2.9898,167.25,167.21,2.9902]
[1730829077206,3.36,167.3,167.16,3.9637]
[1730829077207,14.3395991,167.23,167.16,3.9637]
[1730829078084,2.9903,167.22,167.14,3.36]
[1730829078584,14.3395991,167.23,167.14,3.36]
[1730829078782,17.3296991,167.23,167.19,2.9907]
[1730829078984,17.3296991,167.23,167.15,1.3452]
[1730829079484,14.3395991,167.25,167.19,2.9907]
[1730829079686,2.9897,167.25,167.15,15.6847991]
[1730829079904,16.9924991,167.29,167.23,2.9899]
[1730829080103,16.9924991,167.29,167.19,3.36]
[1730829080410,14.3395991,167.29,167.24,2.9897]
[1730829080618,3.36,167.32,167.2,14.3395991]
[1730829080619,14.3395991,167.31,167.2,15.6216991]
[1730829080818,17.3281991,167.31,167.21,1.3759]
[1730829081007,2.9886,167.31,167.22,14.3395991]
[1730829081203,2.9886,167.31,167.22,15.6731991]
[1730829081614,2.9886,167.31,167.27,2.9892]
[1730829081812,17.3278991,167.33,167.24,3.36]
[1730829082010,14.3395991,167.33,167.24,3.36]
[1730829082406,3.36,167.34,167.24,3.36]
[1730829082716,14.3395991,167.35,167.25,14.3395991]
[1730829083007,2.9882,167.33,167.28,2.9891]
[1730829083414,2.9882,167.33,167.25,14.3395991]
[1730829083709,14.3395991,167.35,167.29,2.9889]
[1730829083917,2.9881,167.34,167.25,14.3395991]
[1730829084122,2.6557,167.36,167.29,2.9889]
[1730829084306,14.3395991,167.35,167.25,14.3395991]
[1730829084506,2.9882,167.34,167.25,14.3395991]
[1730829084708,2.9882,167.34,167.3,2.9886]
[1730829085007,14.3395991,167.35,167.25,14.3395991]
[1730829085207,2.9882,167.33,167.29,2.9888]
[1730829085512,14.3395991,167.35,167.25,14.3395991]
[1730829085712,2.9883,167.33,167.28,2.9889]
[1730829085917,14.3395991,167.35,167.27,3.36]
[1730829086212,14.3395991,167.35,167.26,3.36]
[1730829087905,2.9885,167.32,167.28,2.989]
[1730829088515,14.3395991,167.35,167.26,3.36]
[1730829088717,14.3395991,167.35,167.27,2.9892]
[1730829088718,2.9887,167.31,167.27,2.9892]
[1730829088914,14.3395991,167.35,167.26,3.36]
[1730829089309,14.3395991,167.33,167.26,3.36]
[1730829090017,0.39572,167.38,167.26,17.6995991]
[1730829090220,0.39572,167.38,167.28,14.3395991]
[1730829090409,2.9882,167.34,167.3,2.9887]
[1730829090816,14.3395991,167.34,167.27,1.3264]
[1730829091013,14.3395991,167.34,167.29,2.9888]
[1730829091222,14.3395991,167.34,167.27,1.3264]
[1730829092210,14.3395991,167.32,167.27,1.3264]
[1730829092412,2.9887,167.31,167.27,4.3156]
[1730829093708,2.9888,167.3,167.27,1.3264]
[1730829095219,2.9888,167.3,167.27,4.3157]
[1730829096118,14.3395991,167.34,167.27,1.3264]
[1730829096318,14.3395991,167.34,167.25,3.36]
[1730829096522,14.3395991,167.34,167.26,2.9893]
[1730829096820,14.3395991,167.32,167.26,2.9893]
[1730829097020,2.9887,167.31,167.26,2.9893]
[1730829097218,14.3395991,167.32,167.26,2.9893]
[1730829097427,9.17973709,167.28,167.24,2.9898]
[1730829097619,12.16893709,167.28,167.24,2.9898]
[1730829100716,2.9892,167.28,167.23,12.53973709]
[1730829101420,2.9892,167.28,167.24,2.9898]
[1730829101623,2.9898,167.25,167.21,3.36]
[1730829101825,9.17973709,167.25,167.21,3.36]
[1730829102025,9.17973709,167.24,167.19,3.36]
[1730829102322,2.9901,167.23,167.19,3.36]
[1730829102722,2.9901,167.23,167.18,12.53973709]
[1730829103024,12.16993709,167.22,167.17,3.36]
[1730829104829,9.17973709,167.22,167.17,12.53973709]
[1730829105022,2.9901,167.23,167.19,12.17043709]
[1730829105416,2.9901,167.23,167.19,2.9907]
[1730829107228,2.9901,167.23,167.2,2.9905]
[1730829107431,2.9901,167.23,167.18,3.36]
[1730829107634,2.9901,167.23,167.19,2.9906]
[1730829110133,14.35189057,167.31,167.2,14.35189057]
[1730829110720,14.35189057,167.31,167.22,2.99]
[1730829111627,14.35189057,167.31,167.24,2.9898]
[1730829112930,2.9892,167.28,167.25,2.9896]
[1730829113136,14.35189057,167.31,167.23,3.36]
[1730829113542,14.35189057,167.31,167.26,2.9893]
[1730829113844,2.9889,167.3,167.26,2.9893]
[1730829114238,14.35189057,167.31,167.24,1.2729]
[1730829114435,2.9891,167.28,167.25,2.9896]
[1730829115344,2.9891,167.28,167.24,1.2729]
[1730829115345,2.9891,167.28,167.24,4.2627]
[1730829117136,2.9891,167.28,167.24,2.9898]
[1730829117442,14.35189057,167.31,167.23,3.36]
[1730829118044,2.9894,167.27,167.21,3.34]
[1730829118243,14.35189057,167.29,167.21,3.34]
[1730829118739,2.9896,167.26,167.21,6.3302]
[1730829119044,2.9896,167.26,167.21,3.34]
[1730829119244,2.9896,167.26,167.22,2.9902]
[1730829120145,2.9897,167.25,167.21,3.34]
[1730829120346,14.35189057,167.29,167.22,2.9901]
[1730829120548,14.35189057,167.29,167.21,3.34]
[1730829120745,2.989,167.29,167.21,17.69189057]
[1730829120945,2.989,167.29,167.25,2.9895]
[1730829121266,2.9874,167.38,167.28,14.35189057]
[1730829121453,2.9874,167.38,167.3,14.35189057]
[1730829121747,0.34091,167.39,167.31,3.34]
[1730829121946,0.34091,167.39,167.35,2.9877]
[1730829122145,0.34091,167.39,167.33,14.35189057]
[1730829122444,0.34091,167.39,167.32,2.9882]
[1730829122651,0.34091,167.39,167.33,3.34]
[1730829122872,2.9873,167.38,167.33,3.34]
[1730829123050,0.34091,167.39,167.36,2.9877]
[1730829123545,0.34091,167.39,167.33,17.69189057]
[1730829123764,0.34091,167.39,167.38,2.9873]
[1730829124950,0.34091,167.39,167.38,6.3273]
[1730829125148,2.9861,167.45,167.38,3.34]
[1730829125449,14.35189057,167.48,167.41,2.9867]
[1730829125648,14.35189057,167.48,167.38,3.34]
[1730829125852,14.35189057,167.5,167.38,17.69189057]
[1730829126444,14.35189057,167.45,167.39,3.34]
[1730829126843,2.9866,167.43,167.39,3.34]
[1730829127153,14.35189057,167.45,167.39,3.34]
[1730829127348,2.9866,167.43,167.39,3.34]
[1730829127853,14.35189057,167.43,167.37,3.34]
[1730829128039,2.9866,167.42,167.37,6.3273]
[1730829129052,2.9866,167.42,167.37,2.9873]
[1730829129252,14.35189057,167.43,167.37,2.9873]
[1730829129457,14.35189057,167.41,167.29,1.3506]
[1730829129751,14.35189057,167.41,167.3,17.69189057]
[1730829130048,3.34,167.47,167.36,2.9875]
[1730829130049,14.35189057,167.43,167.36,2.9875]
[1730829130348,14.35189057,167.43,167.36,6.3275]
[1730829130551,14.35189057,167.43,167.36,3.34]
[1730829130852,14.35189057,167.43,167.37,2.9875]
[1730829131040,2.9867,167.42,167.37,2.9875]
[1730829131243,14.35189057,167.43,167.36,3.34]
[1730829131649,2.9868,167.41,167.36,3.34]
[1730829132249,2.9868,167.41,167.37,2.9874]
[1730829132744,2.9868,167.41,167.36,3.34]
[1730829132745,14.35189057,167.46,167.36,17.69189057]
[1730829133151,2.9861,167.45,167.36,17.69189057]
[1730829133641,2.9862,167.45,167.36,17.69189057]
[1730829133846,14.35189057,167.46,167.37,1.2749]
[1730829134145,14.35189057,167.46,167.38,2.9872]
[1730829134347,2.9866,167.43,167.37,1.2749]
[1730829134553,2.9866,167.43,167.38,2.9873]
[1730829135651,2.9866,167.43,167.39,2.9871]
[1730829135850,2.9866,167.43,167.37,4.6149]
[1730829136046,14.35189057,167.46,167.37,4.6149]
[1730829136354,2.9863,167.44,167.37,4.6149]
[1730829136758,14.35189057,167.46,167.37,4.6149]
[1730829136949,2.9859,167.46,167.41,2.9867]
[1730829137251,20.35769057,167.51,167.38,14.35189057]
[1730829137455,14.35189057,167.49,167.38,14.35189057]
[1730829139458,2.9858,167.47,167.42,2.9865]
[1730829139652,2.9858,167.47,167.38,14.35189057]
[1730829140156,2.9854,167.49,167.4,14.35189057]
[1730829140353,2.9854,167.49,167.43,14.35189057]
[1730829140553,14.35189057,167.54,167.47,2.9857]
[1730829140752,2.9851,167.51,167.44,3.34]
[1730829141261,2.9852,167.5,167.44,3.34]
[1730829141656,14.35189057,167.52,167.44,2.9862]
[1730829142051,2.9855,167.49,167.44,2.9862]
[1730829142453,14.35189057,167.52,167.43,3.34]
[1730829142654,14.35189057,167.49,167.43,3.34]
[1730829143362,2.9858,167.47,167.43,3.34]
[1730829143756,2.9859,167.46,167.43,3.34]
[1730829147062,2.9859,167.46,167.41,5.602]
[1730829147256,6.26069747,167.56,167.41,1.2634]
[1730829147257,2.9863,167.44,167.41,1.2634]
[1730829147568,2.9863,167.44,167.4,3.34]
[1730829149057,2.9866,167.43,167.38,4.2461]
[1730829149264,2.9866,167.43,167.38,1.2588]
[1730829149265,14.35189057,167.43,167.38,1.2588]
[1730829149668,2.9868,167.42,167.38,1.2588]
[1730829150169,14.35189057,167.45,167.38,1.2588]
[1730829150365,2.9866,167.43,167.38,1.2588]
[1730829150565,14.35189057,167.47,167.38,1.2588]
[1730829150768,2.986,167.46,167.41,2.9867]
[1730829150972,14.35189057,167.47,167.38,1.2588]
[1730829151359,2.9863,167.44,167.39,2.9871]
[1730829152068,14.35189057,167.45,167.38,1.2588]
[1730829153562,14.35189057,167.47,167.38,1.2588]
[1730829154064,2.9866,167.43,167.38,4.2461]
[1730829155064,2.9859,167.47,167.41,2.9866]
[1730829155263,14.35189057,167.48,167.41,2.9866]
[1730829155986,2.6589,167.5,167.4,14.35189057]
[1730829156269,2.9857,167.48,167.4,14.35189057]
[1730829156566,2.6589,167.5,167.4,14.35189057]
[1730829157265,2.6589,167.5,167.43,2.9864]
[1730829157567,17.69189057,167.51,167.42,3.34]
[1730829157965,2.9856,167.48,167.43,2.9863]
[1730829159072,2.9858,167.47,167.43,2.9863]
[1730829159373,14.35189057,167.49,167.42,3.34]
[1730829159663,2.986,167.46,167.42,3.34]
[1730829160364,2.9857,167.47,167.42,3.34]
[1730829160570,14.35189057,167.49,167.42,3.34]
[1730829160969,2.986,167.46,167.42,3.34]
[1730829161582,2.9858,167.47,167.42,3.34]
[1730829161964,14.35189057,167.5,167.42,6.3264]
[1730829162168,2.9857,167.48,167.42,3.34]
[1730829162466,14.35189057,167.5,167.42,3.34]
[1730829162671,2.9854,167.49,167.42,3.34]
[1730829162975,16.96149057,167.52,167.42,17.69189057]
[1730829163162,2.985,167.52,167.47,2.9857]
[1730829163569,14.35189057,167.54,167.44,14.35189057]
[1730829163771,2.9848,167.53,167.48,2.9854]
[1730829163969,2.9848,167.53,167.45,1.3645]
[1730829164171,3.34,167.58,167.47,17.69189057]
[1730829164578,17.37489057,167.59,167.47,17.69189057]
[1730829164972,17.37489057,167.59,167.49,14.35189057]
[1730829165486,17.01969057,167.59,167.49,14.35189057]
[1730829165770,2.9843,167.56,167.51,2.9849]
[1730829165976,17.01969057,167.59,167.49,14.35189057]
[1730829166479,2.9843,167.55,167.5,2.985]
[1730829167871,14.35189057,167.56,167.47,17.69189057]
[1730829168076,0.3552,167.64,167.5,14.35189057]
[1730829168271,0.3552,167.64,167.52,14.35189057]
[1730829168272,14.35189057,167.63,167.52,14.35189057]
[1730829168468,14.35189057,167.63,167.53,3.34]
[1730829168669,2.9836,167.6,167.55,2.9842]